fUST/lending_fUST_20251020
["ID","MTS","AMOUNT","RATE_DAILY","PERIOD"]
[391905816,1760973041398,-151.0,0.00026,7]
[391905817,1760973041408,-151.0,0.00026,7]
[391905818,1760973041417,-151.0,0.00026,7]
[391905819,1760973041426,-151.0,0.00026,7]
[391905820,1760973041437,-151.0,0.00026,7]
[391905821,1760973041446,-151.0,0.00026,7]
[391905822,1760973041455,-151.0,0.00026,7]
[391905823,1760973041464,-151.0,0.00026,7]
[391905824,1760973041474,-151.0,0.00026,7]
[391905825,1760973041484,-151.0,0.00026,7]
[391905826,1760973041493,-10000.0,0.00026,7]
[391905827,1760973041502,-10000.0,0.00026,7]
[391905828,1760973041511,-10000.0,0.00026,7]
[391905829,1760973041521,-10000.0,0.00026,7]
[391905830,1760973041531,-10000.0,0.00026,7]
[391905831,1760973041541,-10000.0,0.00026,7]
[391905832,1760973041550,-10000.0,0.00026,7]
[391905833,1760973041560,-10000.0,0.00026,7]
[391905834,1760973041571,-10000.0,0.00026,7]
[391905835,1760973041580,-10000.0,0.00026,7]
[391905836,1760973041590,-10000.0,0.00026,7]
[391905837,1760973041599,-250.06454488,0.00026,7]
[391905838,1760973041609,-10000.0,0.00026,7]
[391905839,1760973041621,-10000.0,0.00026,7]
[391905840,1760973041632,-211.958132,0.00026,7]
[391905841,1760973041641,-211.958132,0.00026,7]
[391905842,1760973041650,-151.0,0.00026,7]
[391905843,1760973041661,-211.958132,0.00026,7]
[391905844,1760973041671,-151.0,0.00026,7]
[391905845,1760973041680,-151.0,0.00026,7]
[391905846,1760973041690,-1483.852699,0.00026,7]
[391905847,1760973041700,-211.958132,0.00026,7]
[391905848,1760973041709,-1483.852699,0.00026,7]
[391905849,1760973041719,-1483.852699,0.00026,7]
[391905850,1760973041728,-198.306705,0.00026,2]
[391905851,1760973041738,-151.0,0.00026,7]
[391905852,1760973041748,-1483.852699,0.00026,7]
[391905853,1760973041757,-151.0,0.00026,7]
[391905854,1760973041768,-161.844852,0.00026,7]
[391905855,1760973041777,-161.844852,0.00026,7]
[391905856,1760973041787,-151.0,0.00026,7]
[391905857,1760973041797,-161.844852,0.00026,7]
[391905858,1760973041808,-151.0,0.00026,7]
[391905859,1760973041817,-161.844852,0.00026,7]
[391905860,1760973041827,-151.0,0.00026,7]
[391905861,1760973041837,-151.0,0.00026,7]
[391905862,1760973041847,-151.0,0.00026,7]
[391905863,1760973041857,-151.0,0.00026,7]
[391905864,1760973041868,-151.0,0.00026,7]
[391905865,1760973041880,-151.0,0.00026,7]
[391905866,1760973041890,-1059.156503,0.00026,7]
[391905867,1760973041899,-256.031148,0.00026,7]
[391905868,1760973041910,-1059.156503,0.00026,7]
[391905869,1760973041921,-256.031148,0.00026,7]
[391905870,1760973041930,-1059.156503,0.00026,7]
[391905871,1760973041940,-151.0,0.00026,7]
[391905872,1760973041951,-256.031148,0.00026,7]
[391905873,1760973041960,-151.0,0.00026,7]
[391905874,1760973041972,-1059.156503,0.00026,7]
[391905875,1760973041983,-256.031148,0.00026,7]
[391905876,1760973041994,-435.042453,0.00026,7]
[391905877,1760973042005,-324.678356,0.00026,7]
[391905878,1760973042014,-435.042453,0.00026,7]
[391905879,1760973042024,-324.678356,0.00026,7]
[391905880,1760973042035,-151.0,0.00026,7]
[391905881,1760973042045,-324.678356,0.00026,7]
[391905882,1760973042055,-324.678356,0.00026,7]
[391905883,1760973042065,-151.0,0.00026,7]
[391905884,1760973042076,-1073.69105529,0.00026015,2]
[391905885,1760973042086,-513.90856149,0.00026021,2]
[391905886,1760973042096,-1003.62179262,0.00026021,2]
[391905887,1760973042106,-1000.0,0.00026021,2]
[391905888,1760973042115,-1000.0,0.00026021,2]
[391905889,1760973042125,-1000.0,0.00026021,2]
[391905890,1760973042137,-250.0,0.00026021,2]
[391905891,1760973042147,-199.0,0.00026027,10]
[391905892,1760973042157,-1615.86,0.0002616,3]
[391905893,1760973042168,-807.94,0.0002616,3]
[391905894,1760973042178,-403.96,0.0002616,3]
[391905895,1760973042188,-953.58,0.0002616,3]
[391905896,1760973042198,-635.72,0.0002616,3]
[391905897,1760973042209,-317.86,0.0002616,3]
[391905898,1760973042219,-500.0,0.00026168,2]
[391905899,1760973042229,-217.5,0.00026252,2]
[391905900,1760973042239,-402.9601108,0.000263,3]
[391905901,1760973042250,-507.01973674,0.00026416,2]
[391905902,1760973042260,-2000.0,0.00026416,2]
[391905903,1760973042271,-1335.9880288,0.00026416,2]
[391905904,1760973042280,-2000.0,0.00026416,2]
[391905905,1760973042290,-500.0,0.00026442,2]
[391905906,1760973042300,-294.16336187,0.00026504,2]
[391905907,1760973042311,-2000.0,0.00026516,2]
[391905908,1760973042321,-1500.0,0.00026568,2]
[391905909,1760973042330,-1500.0,0.00026568,2]
[391905910,1760973042340,-560.91516174,0.00026568,2]
[391905911,1760973042350,-350.0,0.00026568,2]
[391905913,1760973042360,-765.89,0.00026572,2]
[391905915,1760973042370,-22072.97,0.000266,7]
[391905918,1760973042379,-500.0,0.00026716,2]
[391905921,1760973042389,-150.0,0.00026773,2]
[391905923,1760973042398,-158.45551666,0.00026773,2]
[391905924,1760973042410,-1000000.0,0.000268,3]
[391905925,1760973042421,-179.739359,0.000268,7]
[391905926,1760973042433,-151.0,0.000268,7]
[391905927,1760973042443,-151.0,0.000268,7]
[391905928,1760973042452,-151.0,0.000268,7]
[391905929,1760973042461,-296.54715215,0.000268,7]
[391905930,1760973042472,-1823.142174,0.000268,7]
[391905931,1760973042483,-1823.142174,0.000268,7]
[391905932,1760973042493,-1823.142174,0.000268,7]
[391905933,1760973042502,-1823.142174,0.000268,7]
[391905934,1760973042512,-151.0,0.000268,7]
[391905937,1760973042522,-151.0,0.000268,7]
[391905938,1760973042531,-151.0,0.000268,7]
[391905939,1760973042541,-151.0,0.000268,7]
[391905940,1760973042550,-180.969693,0.000268,7]
[391905942,1760973042560,-154.085682,0.000268,7]
[391905945,1760973042570,-180.969693,0.000268,7]
[391905948,1760973042579,-180.969693,0.000268,7]
[391905951,1760973042589,-180.969693,0.000268,7]
[391905953,1760973042598,-151.0,0.000268,7]
[391905955,1760973042608,-1297.143153,0.000268,7]
[391905958,1760973042623,-151.0,0.000268,7]
[391905960,1760973042633,-151.0,0.000268,7]
[391905961,1760973042644,-151.0,0.000268,7]
[391905962,1760973042657,-151.0,0.000268,7]
[391905963,1760973042666,-831.41234,0.000268,7]
[391905964,1760973042676,-1297.143153,0.000268,7]
[391905965,1760973042686,-1474.53122,0.000268,7]
[391905966,1760973042698,-831.41234,0.000268,7]
[391905967,1760973042708,-1297.143153,0.000268,7]
[391905968,1760973042718,-1474.53122,0.000268,7]
[391905969,1760973042728,-831.41234,0.000268,7]
[391905970,1760973042738,-1297.143153,0.000268,7]
[391905971,1760973042747,-151.0,0.000268,7]
[391905972,1760973042756,-1474.53122,0.000268,7]
[391905973,1760973042765,-831.41234,0.000268,7]
[391905974,1760973042774,-151.0,0.000268,7]
[391905975,1760973042784,-151.0,0.000268,7]
[391905976,1760973042793,-151.0,0.000268,7]
[391905977,1760973042802,-1474.53122,0.000268,7]
[391905978,1760973042811,-242.758559,0.000268,7]
[391905979,1760973042820,-151.0,0.000268,7]
[391905980,1760973042829,-219.803885,0.000268,7]
[391905981,1760973042839,-151.0,0.000268,7]
[391905982,1760973042848,-219.803885,0.000268,7]
[391905983,1760973042858,-165.046059,0.000268,7]
[391905984,1760973042868,-219.803885,0.000268,7]
[391905986,1760973042878,-219.803885,0.000268,7]
[391905987,1760973042888,-151.0,0.000268,7]
[391905988,1760973042898,-151.0,0.000268,7]
[391905989,1760973042909,-151.0,0.000268,7]
[391905990,1760973042918,-151.0,0.000268,7]
[391905991,1760973042930,-151.0,0.000268,7]
[391905992,1760973043053,-151.0,0.000268,7]
[391905993,1760973043064,-152.517226,0.000268,7]
[391905994,1760973043074,-195.670966,0.000268,7]
[391905995,1760973043084,-195.670966,0.000268,7]
[391905996,1760973043094,-195.670966,0.000268,7]
[391905997,1760973043104,-553.943476,0.000268,7]
[391905998,1760973043114,-195.670966,0.000268,7]
[391906000,1760973043124,-553.943476,0.000268,7]
[391906001,1760973043134,-553.943476,0.000268,7]
[391906002,1760973043144,-553.943476,0.000268,7]
[391906003,1760973043155,-177.750339,0.000268,7]
[391906004,1760973043164,-177.750339,0.000268,7]
[391906005,1760973043175,-177.750339,0.000268,7]
[391906006,1760973043186,-177.750339,0.000268,7]
[391906007,1760973043195,-151.0,0.000268,7]
[391906008,1760973043204,-151.0,0.000268,7]
[391906009,1760973043214,-151.0,0.000268,7]
[391906010,1760973043223,-152.764304,0.000268,7]
[391906011,1760973043233,-152.094428,0.000268,7]
[391906012,1760973043244,-151.244164,0.000268,7]
[391906013,1760973043254,-217.242928,0.000268,7]
[391906014,1760973043263,-151.0,0.000268,7]
[391906015,1760973043272,-151.0,0.000268,7]
[391906016,1760973043281,-151.0,0.000268,7]
[391906017,1760973043291,-542.894894,0.000268,7]
[391906018,1760973043300,-151.0,0.000268,7]
[391906019,1760973043310,-152.12234755,0.000268,7]
[391906020,1760973043319,-542.894894,0.000268,7]
[391906021,1760973043329,-542.894894,0.000268,7]
[391906022,1760973043341,-151.0,0.000268,7]
[391906023,1760973043350,-151.0,0.000268,7]
[391906024,1760973043360,-542.894894,0.000268,7]
[391906025,1760973043369,-153.28037476,0.000268,7]
[391906026,1760973043380,-151.0,0.000268,7]
[391906027,1760973043390,-151.0,0.000268,7]
[391906028,1760973043399,-151.0,0.000268,7]
[391906029,1760973043409,-151.0,0.000268,7]
[391906030,1760973043418,-151.0,0.000268,7]
[391906032,1760973043427,-151.0,0.000268,7]
[391906033,1760973043438,-151.0,0.000268,7]
[391906034,1760973043447,-151.0,0.000268,7]
[391906035,1760973043456,-151.0,0.000268,7]
[391906036,1760973043465,-10000.0,0.000268,7]
[391906037,1760973043475,-10000.0,0.000268,7]
[391906038,1760973043484,-10000.0,0.000268,7]
[391906039,1760973043494,-10000.0,0.000268,7]
[391906040,1760973043505,-10000.0,0.000268,7]
[391906041,1760973043514,-10000.0,0.000268,7]
[391906042,1760973043524,-10000.0,0.000268,7]
[391906043,1760973043533,-10000.0,0.000268,7]
[391906044,1760973043543,-10000.0,0.000268,7]
[391906045,1760973043553,-10000.0,0.000268,7]
[391906046,1760973043564,-10000.0,0.000268,7]
[391906047,1760973043574,-10000.0,0.000268,7]
[391906048,1760973043586,-10000.0,0.000268,7]
[391906049,1760973043596,-211.958132,0.000268,7]
[391906050,1760973043606,-211.958132,0.000268,7]
[391906051,1760973043619,-151.0,0.000268,7]
[391906052,1760973043630,-211.958132,0.000268,7]
[391906053,1760973043640,-158.829495,0.000268,7]
[391906054,1760973043649,-151.0,0.000268,7]
[391906055,1760973043659,-1483.852699,0.000268,7]
[391906056,1760973043669,-211.958132,0.000268,7]
[391906057,1760973043679,-1483.852699,0.000268,7]
[391906058,1760973043688,-1483.852699,0.000268,7]
[391906059,1760973043697,-151.0,0.000268,7]
[391906060,1760973043707,-1483.852699,0.000268,7]
[391906061,1760973043716,-161.844852,0.000268,7]
[391906062,1760973043726,-151.0,0.000268,7]
[391906063,1760973043735,-161.844852,0.000268,7]
[391906064,1760973043744,-151.0,0.000268,7]
[391906065,1760973043754,-161.844852,0.000268,7]
[391906066,1760973043763,-151.0,0.000268,7]
[391906067,1760973043774,-161.844852,0.000268,7]
[391906068,1760973043783,-151.0,0.000268,7]
[391906069,1760973043792,-151.0,0.000268,7]
[391906070,1760973043802,-151.0,0.000268,7]
[391906071,1760973043813,-151.0,0.000268,7]
[391906072,1760973043823,-151.0,0.000268,7]
[391906073,1760973043833,-151.0,0.000268,7]
[391906074,1760973043843,-1059.156503,0.000268,7]
[391906075,1760973043853,-256.031148,0.000268,7]
[391906076,1760973043862,-1059.156503,0.000268,7]
[391906077,1760973043872,-256.031148,0.000268,7]
[391906078,1760973043882,-1059.156503,0.000268,7]
[391906079,1760973043891,-151.0,0.000268,7]
[391906080,1760973043902,-256.031148,0.000268,7]
[391906081,1760973043911,-160.092976,0.000268,7]
[391906082,1760973043921,-1059.156503,0.000268,7]
[391906083,1760973043931,-256.031148,0.000268,7]
[391906084,1760973043940,-435.042453,0.000268,7]
[391906085,1760973043949,-324.678356,0.000268,7]
[391906086,1760973043959,-324.678356,0.000268,7]
[391906087,1760973043968,-151.0,0.000268,7]
[391906088,1760973043978,-435.042453,0.000268,7]
[391906089,1760973043987,-324.678356,0.000268,7]
[391906090,1760973043996,-324.678356,0.000268,7]
[391906091,1760973044006,-151.0,0.000268,7]
[391906092,1760973044015,-160.0,0.00026805,2]
[391906093,1760973044025,-240.0,0.00026852,2]
[391906094,1760973044035,-1680.0,0.00026887,2]
[391906095,1760973044046,-166.84843,0.000269,20]
[391906096,1760973044057,-152.205393,0.000269,20]
[391906097,1760973044067,-300.0,0.000269,2]
[391906098,1760973044077,-300.0,0.000269,2]
[391906099,1760973044087,-2500.0,0.00026964,2]
[391906100,1760973044098,-524.87285329,0.00026964,2]
[391906101,1760973044108,-500.0,0.0002699,2]
[391906102,1760973044119,-46487.88444914,0.00027,3]
[391906103,1760973044128,-2500.0,0.00027064,2]
[391906104,1760973044137,-946.45912168,0.00027116,2]
[391906105,1760973044149,-290.63311626,0.00027116,2]
[391906106,1760973044161,-450.0,0.00027116,2]
[391906107,1760973044171,-500.0,0.00027264,2]
[391906108,1760973044180,-15495.96,0.00027316,3]
[391906109,1760973044190,-300.0,0.00027321,2]
[391906110,1760973044199,-260.0,0.00027353,2]
[391906111,1760973044211,-151.0,0.00027397,30]
[391906112,1760973044220,-152.322127,0.00027397,30]
[391906113,1760973044232,-150.0,0.00027397,5]
[391906114,1760973044242,-2540.16,0.000274,2]
[391906115,1760973044252,-262.5,0.00027452,2]
[391906116,1760973044263,-1027.64625486,0.00027512,5]
[391906117,1760973044273,-861.62,0.0002752,2]
[391906118,1760973044283,-166.84843,0.00027573,2]
[391906119,1760973044293,-152.205393,0.00027573,2]
[391906120,1760973044303,-3000.0,0.00027612,5]
[391906121,1760973044314,-550.0,0.00027664,5]
[391906122,1760973044325,-500.0,0.00027778,5]
[391906123,1760973044335,-166.84843,0.00027784,20]
[391906124,1760973044346,-152.205393,0.00027784,20]
[391906125,1760973044356,-500.0,0.000278,5]
[391906126,1760973044367,-450.0,0.00027868,5]
[391906127,1760973044377,-402.9601108,0.00027879,2]
[391906128,1760973044387,-160.0,0.00027879,2]
[391906129,1760973044401,-360.0,0.00027901,2]
[391906130,1760973044410,-250.0,0.00027945,5]
[391906131,1760973044421,-180.0,0.00028,2]
[391906132,1760973044431,-285.0,0.00028052,2]
[391906133,1760973044440,-3500.0,0.0002816,5]
[391906134,1760973044450,-707.02076465,0.00028212,5]
[391906135,1760973044461,-335.50537354,0.00028348,5]
[391906136,1760973044472,-22072.97,0.000284,7]
[391906137,1760973044481,-402.9601108,0.000284,7]
[391906138,1760973044492,-600.0,0.00028416,5]
[391906139,1760973044501,-460.0,0.00028449,2]
[391906140,1760973044511,-957.36,0.00028469,2]
[391906141,1760973044521,-350.0,0.00028493,5]
[391906142,1760973044531,-307.5,0.00028652,2]
[391906143,1760973044541,-166.84843,0.00028668,20]
[391906144,1760973044553,-152.205393,0.00028668,20]
[391906145,1760973044564,-4000.0,0.00028708,5]
[391906146,1760973044574,-2540.16,0.000288,2]
[391906147,1760973044584,-500.0,0.00028888,10]
[391906148,1760973044593,-500.0,0.00028888,10]
[391906149,1760973044603,-683.61310881,0.00028964,5]
[391906150,1760973044613,-597.40411846,0.00028973,5]
[391906151,1760973044627,-500.0,0.00028973,5]
[391906152,1760973044637,-560.0,0.00028997,2]
[391906153,1760973044646,-1169.01441972,0.00029,2]
[391906154,1760973044657,-330.0,0.00029252,2]
[391906155,1760973044666,-4500.0,0.00029256,5]
[391906156,1760973044675,-750.0,0.00029269,2]
[391906157,1760973044687,-660.0,0.00029545,2]
[391906158,1760973044699,-166.84843,0.00029552,20]
[391906159,1760973044709,-152.205393,0.00029552,20]
[391906160,1760973044718,-5000.0,0.00029554,2]
[391906161,1760973044727,-150.0,0.000297,2]
[391906162,1760973044737,-179.73040439,0.00029701,4]
[391906163,1760973044747,-352.5,0.00029852,2]
[391906164,1760973044757,-166.84843,0.0003,15]
[391906165,1760973044767,-152.205393,0.0003,15]
[391906166,1760973044776,-1000.0,0.0003,14]
[391906167,1760973044787,-1000.0,0.0003,4]
[391906168,1760973044796,-197.55868691,0.0003,14]
[391906169,1760973044806,-760.0,0.00030093,2]
[391906170,1760973044815,-800.0,0.00030198,2]
[391906171,1760973044825,-2540.16,0.000302,2]
[391906172,1760973044834,-166.84843,0.0003038,2]
[391906173,1760973044844,-152.205393,0.0003038,2]
[391906174,1760973044853,-22072.97,0.000304,7]
[391906175,1760973044863,-324.678356,0.000304,7]
[391906176,1760973044873,-324.678356,0.000304,7]
[391906177,1760973044882,-151.0,0.000304,30]
[391906178,1760973044892,-324.678356,0.000304,7]
[391906179,1760973044902,-324.678356,0.000304,7]
[391906180,1760973044912,-151.0,0.000304,30]
[391906181,1760973044923,-800.0,0.00030408,2]
[391906182,1760973044932,-156.58833,0.00030436,20]
[391906183,1760973044942,-166.84843,0.00030436,20]
[391906184,1760973044951,-152.205393,0.00030436,20]
[391906185,1760973044962,-185.564173,0.00030436,20]
[391906186,1760973044971,-375.0,0.00030452,2]
[391906187,1760973044981,-168.0,0.00030571,2]
[391906188,1760973044990,-860.0,0.00030641,2]
[391906189,1760973045000,-95.13645423,0.00031,120]
[391906190,1760973045010,-500.0,0.00031,5]
[391906191,1760973045019,-828.4621375,0.00031,120]
[391906192,1760973045029,-213.13086189,0.00031,120]
[391906193,1760973045038,-165.92119716,0.00031,120]
[391906194,1760973045048,-204.00726077,0.00031,120]
[391906195,1760973045057,-425.53646074,0.00031,120]
[391906196,1760973045182,-180.0,0.00031,120]
[391906197,1760973045193,-180.0,0.00031,120]
[391906198,1760973045202,-221.7681103,0.00031,120]
[391906199,1760973045212,-480.0,0.00031048,2]
[391906200,1760973045222,-397.5,0.00031052,2]
[391906201,1760973045232,-150.0,0.00031175,5]
[391906202,1760973045241,-960.0,0.00031188,2]
[391906203,1760973045250,-152.37,0.00031197,15]
[391906204,1760973045260,-151.0,0.000312,10]
[391906205,1760973045270,-1000.0,0.00031249,2]
[391906206,1760973045280,-1000.0,0.00031249,2]
[391906207,1760973045289,-1000.0,0.00031249,2]
[391906208,1760973045299,-1000.0,0.00031249,2]
[391906209,1760973045308,-1000.0,0.00031249,2]
[391906210,1760973045317,-1000.0,0.00031249,2]
[391906211,1760973045327,-1039.57200299,0.00031249,2]
[391906212,1760973045336,-800.0,0.00031262,2]
[391906213,1760973045346,-152.37,0.00031297,15]
[391906214,1760973045355,-152.37,0.00031397,15]
[391906215,1760973045365,-649.0,0.00031438,2]
[391906216,1760973045373,-152.37,0.00031497,15]
[391906217,1760973045383,-1000.0,0.00031548,5]
[391906218,1760973045392,-800.0,0.00031548,2]
[391906219,1760973045403,-152.37,0.00031597,15]
[391906220,1760973045412,-2540.16,0.000316,2]
[391906221,1760973045421,-420.0,0.00031652,2]
[391906222,1760973045431,-480.0,0.00031667,7]
[391906223,1760973045441,-152.37,0.00031697,15]
[391906224,1760973045451,-250.0,0.00031723,5]
[391906225,1760973045461,-1060.0,0.00031736,2]
[391906226,1760973045470,-480.0,0.00031784,2]
[391906227,1760973045480,-152.37,0.00031797,15]
[391906228,1760973045490,-800.0,0.00031809,2]
[391906229,1760973045500,-152.37,0.00031897,15]
[391906230,1760973045510,-2106.14444112,0.000319,120]
[391906231,1760973045520,-213.13086189,0.000319,120]
[391906232,1760973045530,-828.4621375,0.000319,120]
[391906233,1760973045540,-165.92119716,0.000319,120]
[391906234,1760973045550,-425.53646074,0.000319,120]
[391906235,1760973045560,-152.37,0.00031997,15]
[391906236,1760973045570,-22072.97,0.00032,7]
[391906237,1760973045579,-800.0,0.00032008,2]
[391906238,1760973045588,-166.84843,0.0003205,15]
[391906239,1760973045598,-152.205393,0.0003205,15]
[391906240,1760973045607,-1500.0,0.00032096,5]
[391906241,1760973045619,-152.37,0.00032097,15]
[391906242,1760973045629,-152.37,0.00032197,15]
[391906243,1760973045639,-151.0,0.000322,14]
[391906244,1760973045649,-153.0,0.00032223,2]
[391906245,1760973045658,-153.0,0.00032223,2]
[391906246,1760973045668,-800.0,0.00032223,2]
[391906247,1760973045677,-153.0,0.00032226,2]
[391906248,1760973045687,-153.0,0.00032226,2]
[391906249,1760973045697,-442.5,0.00032252,2]
[391906250,1760973045707,-151.0,0.00032252,30]
[391906251,1760973045717,-151.0,0.00032252,30]
[391906252,1760973045726,-161.844852,0.00032252,30]
[391906253,1760973045736,-151.0,0.00032252,30]
[391906254,1760973045746,-161.844852,0.00032252,30]
[391906255,1760973045756,-151.0,0.00032252,30]
[391906256,1760973045765,-161.844852,0.00032252,30]
[391906257,1760973045774,-216.547356,0.00032252,30]
[391906258,1760973045784,-161.844852,0.00032252,30]
[391906259,1760973045794,-151.0,0.00032252,30]
[391906260,1760973045803,-151.0,0.00032252,30]
[391906261,1760973045813,-244.405244,0.00032252,30]
[391906262,1760973045823,-151.0,0.00032252,30]
[391906263,1760973045834,-151.0,0.00032252,30]
[391906264,1760973045843,-151.0,0.00032252,30]
[391906265,1760973045854,-1059.156503,0.00032252,30]
[391906266,1760973045863,-256.031148,0.00032252,30]
[391906267,1760973045873,-1059.156503,0.00032252,30]
[391906268,1760973045883,-256.031148,0.00032252,30]
[391906269,1760973045893,-1059.156503,0.00032252,30]
[391906270,1760973045902,-151.0,0.00032252,30]
[391906271,1760973045911,-256.031148,0.00032252,30]
[391906272,1760973045920,-1059.156503,0.00032252,30]
[391906273,1760973045930,-256.031148,0.00032252,30]
[391906274,1760973045940,-435.042453,0.00032252,30]
[391906275,1760973045950,-435.042453,0.00032252,30]
[391906276,1760973045959,-192.45394762,0.00032259,2]
[391906277,1760973045968,-350.0,0.00032271,5]
[391906278,1760973045978,-500.0,0.00032273,5]
[391906279,1760973045987,-1160.0,0.00032284,2]
[391906280,1760973045996,-152.37,0.00032297,15]
[391906281,1760973046006,-152.37,0.00032397,15]
[391906282,1760973046015,-152.37,0.00032497,15]
[391906283,1760973046024,-152.37,0.00032597,15]
[391906284,1760973046033,-151.0,0.00032609,30]
[391906285,1760973046043,-151.0,0.00032609,30]
[391906286,1760973046053,-195.670966,0.00032609,30]
[391906287,1760973046063,-195.670966,0.00032609,30]
[391906288,1760973046072,-195.670966,0.00032609,30]
[391906289,1760973046082,-553.943476,0.00032609,30]
[391906290,1760973046091,-195.670966,0.00032609,30]
[391906291,1760973046101,-553.943476,0.00032609,30]
[391906292,1760973046111,-553.943476,0.00032609,30]
[391906293,1760973046120,-553.943476,0.00032609,30]
[391906294,1760973046129,-177.750339,0.00032609,30]
[391906295,1760973046138,-177.750339,0.00032609,30]
[391906296,1760973046148,-177.750339,0.00032609,30]
[391906297,1760973046157,-177.750339,0.00032609,30]
[391906298,1760973046166,-151.0,0.00032609,30]
[391906299,1760973046175,-151.0,0.00032609,30]
[391906300,1760973046185,-151.0,0.00032609,30]
[391906301,1760973046195,-151.0,0.00032609,30]
[391906302,1760973046204,-151.0,0.00032609,30]
[391906303,1760973046214,-151.0,0.00032609,30]
[391906304,1760973046223,-1000.0,0.00032609,30]
[391906305,1760973046237,-1000.0,0.00032609,30]
[391906306,1760973046246,-1000.0,0.00032609,30]
[391906307,1760973046256,-1000.0,0.00032609,30]
[391906308,1760973046266,-542.894894,0.00032609,30]
[391906309,1760973046276,-1000.0,0.00032609,30]
[391906310,1760973046285,-151.0,0.00032609,30]
[391906311,1760973046294,-1000.0,0.00032609,30]
[391906312,1760973046304,-542.894894,0.00032609,30]
[391906313,1760973046313,-1000.0,0.00032609,30]
[391906314,1760973046324,-1000.0,0.00032609,30]
[391906315,1760973046334,-1000.0,0.00032609,30]
[391906316,1760973046343,-1000.0,0.00032609,30]
[391906317,1760973046352,-1000.0,0.00032609,30]
[391906319,1760973046364,-1000.0,0.00032609,30]
[391906320,1760973046374,-1000.0,0.00032609,30]
[391906321,1760973046383,-1000.0,0.00032609,30]
[391906322,1760973046393,-1000.0,0.00032609,30]
[391906323,1760973046403,-1000.0,0.00032609,30]
[391906324,1760973046413,-151.0,0.00032609,30]
[391906325,1760973046422,-1000.0,0.00032609,30]
[391906326,1760973046433,-1000.0,0.00032609,30]
[391906327,1760973046442,-1000.0,0.00032609,30]
[391906328,1760973046451,-1000.0,0.00032609,30]
[391906329,1760973046460,-1000.0,0.00032609,30]
[391906330,1760973046470,-1000.0,0.00032609,30]
[391906331,1760973046479,-1000.0,0.00032609,30]
[391906332,1760973046489,-1000.0,0.00032609,30]
[391906333,1760973046500,-542.894894,0.00032609,30]
[391906334,1760973046509,-1000.0,0.00032609,30]
[391906335,1760973046520,-1000.0,0.00032609,30]
[391906336,1760973046530,-1000.0,0.00032609,30]
[391906337,1760973046540,-1000.0,0.00032609,30]
[391906338,1760973046549,-1000.0,0.00032609,30]
[391906339,1760973046561,-1000.0,0.00032609,30]
[391906340,1760973046570,-542.894894,0.00032609,30]